[Event "Late-Titled-Tuesday-Blitz-March-05-2024"]
[Site "Chess.com"]
[Date "2024.03.05"]
[Round "7"]
[White "XDPS"]
[Black "ChessBrainiacOnTwitch"]
[Result "1-0"]
[WhiteElo "2908"]
[BlackElo "2789"]
[TimeControl "180+1"]
[EndTime "15:16:46 PST"]
[Termination "XDPS won by checkmate"]

1. d4 {[%clk 0:03:00.9]} 1... Nf6 {[%clk 0:02:51.5]} 2. Nf3 {[%clk 0:03:01.1]}
2... g6 {[%clk 0:02:50.1]} 3. Bf4 {[%clk 0:03:01.7]} 3... Bg7 {[%clk 0:02:50.2]}
4. e3 {[%clk 0:03:02.4]} 4... O-O {[%clk 0:02:49.9]} 5. h3 {[%clk 0:03:02.8]}
5... d6 {[%clk 0:02:50.3]} 6. Bh2 {[%clk 0:03:01.9]} 6... c5 {[%clk 0:02:50.5]}
7. c3 {[%clk 0:03:02.5]} 7... b6 {[%clk 0:02:50.1]} 8. Nbd2 {[%clk 0:03:02.4]}
8... Bb7 {[%clk 0:02:50.7]} 9. Be2 {[%clk 0:02:59.8]} 9... Nc6 {[%clk
0:02:46.4]} 10. O-O {[%clk 0:02:59.7]} 10... Rc8 {[%clk 0:02:47.1]} 11. Re1
{[%clk 0:02:57.2]} 11... Qc7 {[%clk 0:02:38.6]} 12. Qa4 {[%clk 0:02:55.3]} 12...
Qb8 {[%clk 0:02:35.4]} 13. Rad1 {[%clk 0:02:54.9]} 13... Qa8 {[%clk 0:02:35.1]}
14. Bf1 {[%clk 0:02:55.4]} 14... Rfd8 {[%clk 0:02:34]} 15. Qb3 {[%clk
0:02:52.4]} 15... e6 {[%clk 0:02:33.2]} 16. Nc4 {[%clk 0:02:47.5]} 16... Ne4
{[%clk 0:02:20.8]} 17. dxc5 {[%clk 0:02:41]} 17... dxc5 {[%clk 0:02:09.3]} 18.
Qc2 {[%clk 0:02:37.6]} 18... Ne7 {[%clk 0:02:02.6]} 19. Nfe5 {[%clk 0:02:28.2]}
19... Rd5 {[%clk 0:01:56.2]} 20. f3 {[%clk 0:02:24.1]} 20... Nf6 {[%clk
0:01:41.2]} 21. e4 {[%clk 0:02:23.4]} 21... Rxd1 {[%clk 0:01:39.5]} 22. Rxd1
{[%clk 0:02:24.3]} 22... Rd8 {[%clk 0:01:38.7]} 23. Nd6 {[%clk 0:02:20.7]} 23...
Rf8 {[%clk 0:01:31.9]} 24. Bc4 {[%clk 0:02:19.7]} 24... Bc8 {[%clk 0:01:27.9]}
25. a4 {[%clk 0:02:16.9]} 25... Nc6 {[%clk 0:01:25.9]} 26. Nxc6 {[%clk
0:02:00.2]} 26... Qxc6 {[%clk 0:01:26.8]} 27. Bb5 {[%clk 0:01:59.8]} 27... Qa8
{[%clk 0:01:21.2]} 28. Nxc8 {[%clk 0:01:59.8]} 28... Qxc8 {[%clk 0:01:19.2]} 29.
Qd3 {[%clk 0:01:58.6]} 29... Nh5 {[%clk 0:00:43.9]} 30. g4 {[%clk 0:01:58]}
30... Nf6 {[%clk 0:00:42.2]} 31. Qd6 {[%clk 0:01:58.5]} 31... h6 {[%clk
0:00:35.6]} 32. Qe7 {[%clk 0:01:44.2]} 32... Nh7 {[%clk 0:00:33.4]} 33. Qxa7
{[%clk 0:01:41.9]} 33... Rd8 {[%clk 0:00:31.3]} 34. Rxd8+ {[%clk 0:01:38]} 34...
Qxd8 {[%clk 0:00:32.2]} 35. Qb8 {[%clk 0:01:38.5]} 35... Bf6 {[%clk 0:00:27]}
36. Qxd8+ {[%clk 0:01:29.6]} 36... Bxd8 {[%clk 0:00:27.9]} 37. Bd6 {[%clk
0:01:30]} 37... Ng5 {[%clk 0:00:26.4]} 38. Kg2 {[%clk 0:01:29.2]} 38... f5
{[%clk 0:00:26.8]} 39. Bd3 {[%clk 0:01:06.3]} 39... Nf7 {[%clk 0:00:26.4]} 40.
Bg3 {[%clk 0:01:01.6]} 40... fxg4 {[%clk 0:00:25.9]} 41. fxg4 {[%clk 0:00:55.8]}
41... e5 {[%clk 0:00:26.8]} 42. Bc4 {[%clk 0:00:55.6]} 42... Bc7 {[%clk
0:00:26.6]} 43. b4 {[%clk 0:00:53.4]} 43... Kg7 {[%clk 0:00:24.7]} 44. Bf2
{[%clk 0:00:38.1]} 44... cxb4 {[%clk 0:00:22.6]} 45. cxb4 {[%clk 0:00:38.3]}
45... Nd6 {[%clk 0:00:23.5]} 46. Bd5 {[%clk 0:00:38.5]} 46... Kf6 {[%clk
0:00:22.4]} 47. Kf3 {[%clk 0:00:38.2]} 47... g5 {[%clk 0:00:21.8]} 48. Ke2
{[%clk 0:00:38.1]} 48... Ke7 {[%clk 0:00:21.3]} 49. Kd3 {[%clk 0:00:38.5]} 49...
Kd8 {[%clk 0:00:19.4]} 50. Bg3 {[%clk 0:00:38.3]} 50... Ne8 {[%clk 0:00:19.3]}
51. Kc4 {[%clk 0:00:36.9]} 51... Nd6+ {[%clk 0:00:19.5]} 52. Kb3 {[%clk
0:00:37.6]} 52... Ne8 {[%clk 0:00:20.4]} 53. Be1 {[%clk 0:00:35.4]} 53... Nf6
{[%clk 0:00:20.4]} 54. Bc6 {[%clk 0:00:35]} 54... Ke7 {[%clk 0:00:20.2]} 55. a5
{[%clk 0:00:35.1]} 55... bxa5 {[%clk 0:00:20.7]} 56. bxa5 {[%clk 0:00:36]} 56...
Kd6 {[%clk 0:00:21.5]} 57. Bb7 {[%clk 0:00:36.4]} 57... Kc5 {[%clk 0:00:20.1]}
58. a6 {[%clk 0:00:36.7]} 58... Bb8 {[%clk 0:00:17.8]} 59. Bf2+ {[%clk
0:00:36.4]} 59... Kb5 {[%clk 0:00:17.8]} 60. a7 {[%clk 0:00:36.7]} 60... Bxa7
{[%clk 0:00:18.1]} 61. Bxa7 {[%clk 0:00:37.6]} 61... Nd7 {[%clk 0:00:18.3]} 62.
Bd5 {[%clk 0:00:36.7]} 62... Nf6 {[%clk 0:00:18.2]} 63. Bb7 {[%clk 0:00:34.4]}
63... Nd7 {[%clk 0:00:18.2]} 64. Kc3 {[%clk 0:00:34]} 64... Nc5 {[%clk
0:00:17.1]} 65. Bxc5 {[%clk 0:00:32.7]} 65... Kxc5 {[%clk 0:00:18]} 66. Bd5
{[%clk 0:00:32.4]} 66... Kb5 {[%clk 0:00:18.9]} 67. Bc4+ {[%clk 0:00:31.8]}
67... Kc5 {[%clk 0:00:18.2]} 68. Bd3 {[%clk 0:00:32.1]} 68... Kd6 {[%clk
0:00:17.1]} 69. Kc4 {[%clk 0:00:29.1]} 69... Kc6 {[%clk 0:00:17.4]} 70. Bc2
{[%clk 0:00:29.5]} 70... Kd6 {[%clk 0:00:16.8]} 71. Ba4 {[%clk 0:00:29.9]} 71...
Ke6 {[%clk 0:00:15.7]} 72. Kc5 {[%clk 0:00:30.3]} 72... Ke7 {[%clk 0:00:16]} 73.
Kd5 {[%clk 0:00:30.3]} 73... h5 {[%clk 0:00:16.9]} 74. Kxe5 {[%clk 0:00:30.2]}
74... hxg4 {[%clk 0:00:16.8]} 75. hxg4 {[%clk 0:00:30.7]} 75... Kf7 {[%clk
0:00:17.7]} 76. Kf5 {[%clk 0:00:30.8]} 76... Ke7 {[%clk 0:00:18.6]} 77. e5
{[%clk 0:00:31.2]} 77... Kf7 {[%clk 0:00:19.1]} 78. Bb3+ {[%clk 0:00:29.8]}
78... Ke7 {[%clk 0:00:20]} 79. Kxg5 {[%clk 0:00:29.9]} 79... Kf8 {[%clk
0:00:20.9]} 80. Kf6 {[%clk 0:00:29.7]} 80... Ke8 {[%clk 0:00:21.8]} 81. g5
{[%clk 0:00:30.4]} 81... Kd8 {[%clk 0:00:22.2]} 82. g6 {[%clk 0:00:29.5]} 82...
Kc7 {[%clk 0:00:23.1]} 83. e6 {[%clk 0:00:29.8]} 83... Kb6 {[%clk 0:00:24]} 84.
g7 {[%clk 0:00:30]} 84... Kc5 {[%clk 0:00:24.9]} 85. Bd1 {[%clk 0:00:30.4]}
85... Kb4 {[%clk 0:00:25.8]} 86. Bh5 {[%clk 0:00:31]} 86... Kc3 {[%clk
0:00:26.7]} 87. Bf7 {[%clk 0:00:31.5]} 87... Kd2 {[%clk 0:00:27.6]} 88. g8=Q
{[%clk 0:00:29.5]} 88... Ke1 {[%clk 0:00:28.5]} 89. e7 {[%clk 0:00:29.1]} 89...
Kf2 {[%clk 0:00:29.4]} 90. Qg4 {[%clk 0:00:25.4]} 90... Kf1 {[%clk 0:00:30.3]}
91. Qg3 {[%clk 0:00:23.6]} 91... Ke2 {[%clk 0:00:30.5]} 92. e8=Q+ {[%clk
0:00:23]} 92... Kd1 {[%clk 0:00:30.4]} 93. Qa4+ {[%clk 0:00:19.9]} 93... Kd2
{[%clk 0:00:30.8]} 94. Qf2+ {[%clk 0:00:19.2]} 94... Kc1 {[%clk 0:00:31.7]} 95.
Qa1# {[%clk 0:00:17.6]} 1-0

[Event "Late-Titled-Tuesday-Blitz-March-05-2024"]
[Site "Chess.com"]
[Date "2024.03.05"]
[Round "7"]
[White "GotCheeseCheckers"]
[Black "Rodalquilar"]
[Result "0-1"]
[WhiteElo "2512"]
[BlackElo "2781"]
[TimeControl "180+1"]
[EndTime "15:17:12 PST"]
[Termination "Rodalquilar won by resignation"]

1. e4 {[%clk 0:01:55.7]} 1... d5 {[%clk 0:02:57.9]} 2. exd5 {[%clk 0:01:55.2]}
2... Qxd5 {[%clk 0:02:58.8]} 3. Nc3 {[%clk 0:01:55.7]} 3... Qa5 {[%clk
0:02:59.1]} 4. Nge2 {[%clk 0:01:56.3]} 4... Nf6 {[%clk 0:02:59.1]} 5. Nd4 {[%clk
0:01:55.6]} 5... c6 {[%clk 0:02:57.1]} 6. Nb3 {[%clk 0:01:55]} 6... Qc7 {[%clk
0:02:57]} 7. d4 {[%clk 0:01:55.1]} 7... Bf5 {[%clk 0:02:56.2]} 8. Bd3 {[%clk
0:01:55.2]} 8... Bxd3 {[%clk 0:02:54.8]} 9. Qxd3 {[%clk 0:01:56.1]} 9... e6
{[%clk 0:02:55.5]} 10. O-O {[%clk 0:01:54.1]} 10... Nbd7 {[%clk 0:02:55.9]} 11.
Ne4 {[%clk 0:01:53.6]} 11... Be7 {[%clk 0:02:54.3]} 12. Qg3 {[%clk 0:01:30.9]}
12... Qxg3 {[%clk 0:02:53.6]} 13. Nxg3 {[%clk 0:01:31.1]} 13... h5 {[%clk
0:02:48.8]} 14. c3 {[%clk 0:01:27.2]} 14... h4 {[%clk 0:02:49]} 15. Ne2 {[%clk
0:01:27.3]} 15... h3 {[%clk 0:02:49.1]} 16. g3 {[%clk 0:01:22.7]} 16... a5
{[%clk 0:02:41.9]} 17. a4 {[%clk 0:01:18.6]} 17... Ra6 {[%clk 0:02:38.8]} 18.
Bg5 {[%clk 0:00:56.6]} 18... Ne4 {[%clk 0:02:32.2]} 19. Bxe7 {[%clk 0:00:55.4]}
19... Kxe7 {[%clk 0:02:33.1]} 20. f3 {[%clk 0:00:47.5]} 20... Nd6 {[%clk
0:02:31.8]} 21. Kf2 {[%clk 0:00:46.7]} 21... Nc4 {[%clk 0:02:25.9]} 22. Ra2
{[%clk 0:00:42.3]} 22... Rb6 {[%clk 0:02:24.3]} 23. Nec1 {[%clk 0:00:42.9]}
23... Nf6 {[%clk 0:02:21.2]} 24. Ke2 {[%clk 0:00:42]} 24... Rh5 {[%clk
0:01:46.8]} 25. Kd3 {[%clk 0:00:33.4]} 25... Nd6 {[%clk 0:01:47.2]} 26. Kc2
{[%clk 0:00:26.6]} 26... Nd5 {[%clk 0:01:46.9]} 27. Re1 {[%clk 0:00:20.9]} 27...
Rf5 {[%clk 0:01:41.3]} 28. Nd2 {[%clk 0:00:21.2]} 28... Ra6 {[%clk 0:01:21.5]}
29. Nd3 {[%clk 0:00:21.4]} 29... Rh5 {[%clk 0:01:22]} 30. Nc5 {[%clk 0:00:18.9]}
30... Ra8 {[%clk 0:01:21.2]} 31. Nde4 {[%clk 0:00:17.7]} 31... b6 {[%clk
0:01:15.5]} 32. Nd3 {[%clk 0:00:17.5]} 32... Nxe4 {[%clk 0:01:01.7]} 33. fxe4
{[%clk 0:00:17.5]} 33... Nf6 {[%clk 0:01:02.3]} 34. b4 {[%clk 0:00:16.4]} 34...
Ng4 {[%clk 0:01:01.3]} 35. Kb3 {[%clk 0:00:15.4]} 35... Rb8 {[%clk 0:00:54.3]}
36. b5 {[%clk 0:00:15.1]} 36... cxb5 {[%clk 0:00:53.9]} 37. axb5 {[%clk
0:00:16]} 37... Rxb5+ {[%clk 0:00:53.8]} 38. Kc2 {[%clk 0:00:16.5]} 38... Rc8
{[%clk 0:00:51.3]} 39. Nf4 {[%clk 0:00:16.5]} 39... Nxh2 {[%clk 0:00:44.7]} 40.
Rh1 {[%clk 0:00:14]} 40... Nf3 {[%clk 0:00:43.9]} 41. Kd3 {[%clk 0:00:14.6]}
41... Rb3 {[%clk 0:00:35.3]} 42. Rc2 {[%clk 0:00:15.2]} 42... e5 {[%clk
0:00:30.7]} 43. Nd5+ {[%clk 0:00:14.7]} 43... Kd6 {[%clk 0:00:28.8]} 44. dxe5+
{[%clk 0:00:13.7]} 44... Nxe5+ {[%clk 0:00:28.8]} 45. Ke3 {[%clk 0:00:11.7]}
45... f5 {[%clk 0:00:23.1]} 46. Rxh3 {[%clk 0:00:11.6]} 46... fxe4 {[%clk
0:00:23.6]} 47. Nf4 {[%clk 0:00:10.7]} 47... Rcxc3+ {[%clk 0:00:22]} 48. Rxc3
{[%clk 0:00:11.6]} 48... Rxc3+ {[%clk 0:00:22.9]} 49. Kxe4 {[%clk 0:00:12.5]}
49... Rc4+ {[%clk 0:00:22.8]} 50. Kf5 {[%clk 0:00:12.3]} 50... Rc5 {[%clk
0:00:21.4]} 51. Rh1 {[%clk 0:00:13]} 51... Nd3+ {[%clk 0:00:16.7]} 52. Kg6
{[%clk 0:00:12.7]} 52... Nxf4+ {[%clk 0:00:17.2]} 53. gxf4 {[%clk 0:00:13.6]}
53... a4 {[%clk 0:00:17.9]} 54. Kxg7 {[%clk 0:00:12.4]} 54... Rf5 {[%clk
0:00:18]} 55. Rf1 {[%clk 0:00:11.2]} 55... b5 {[%clk 0:00:16.5]} 56. Kg6 {[%clk
0:00:11.9]} 56... Rf8 {[%clk 0:00:16.9]} 57. f5 {[%clk 0:00:12.6]} 57... b4
{[%clk 0:00:17.5]} 58. Kg7 {[%clk 0:00:10.8]} 58... Rxf5 {[%clk 0:00:12.9]} 59.
Rxf5 {[%clk 0:00:11]} 59... b3 {[%clk 0:00:13.5]} 60. Ra5 {[%clk 0:00:09]} 60...
b2 {[%clk 0:00:12.6]} 61. Rxa4 {[%clk 0:00:09.9]} 61... b1=Q {[%clk 0:00:13]}
62. Rg4 {[%clk 0:00:10.6]} 62... Qf5 {[%clk 0:00:11.2]} 63. Rg6+ {[%clk
0:00:10.2]} 63... Ke7 {[%clk 0:00:11.4]} 64. Kh6 {[%clk 0:00:07.3]} 64... Qf8+
{[%clk 0:00:08.4]} 65. Kg5 {[%clk 0:00:06.4]} 65... Qf1 {[%clk 0:00:08.2]} 66.
Rg7+ {[%clk 0:00:04.5]} 66... Ke6 {[%clk 0:00:06.8]} 67. Rg6+ {[%clk 0:00:05.1]}
67... Kf7 {[%clk 0:00:07.2]} 68. Rh6 {[%clk 0:00:03.2]} 68... Qg1+ {[%clk
0:00:06.1]} 69. Kh5 {[%clk 0:00:03.6]} 69... Kg7 {[%clk 0:00:06.4]} 70. Re6
{[%clk 0:00:03.9]} 70... Qh2+ {[%clk 0:00:06.1]} 71. Kg5 {[%clk 0:00:04.5]}
71... Qg3+ {[%clk 0:00:06.4]} 72. Kf5 {[%clk 0:00:05.1]} 72... Qh3+ {[%clk
0:00:05.5]} 73. Ke5 {[%clk 0:00:06]} 73... Kf7 {[%clk 0:00:06.1]} 74. Rf6+
{[%clk 0:00:06.4]} 74... Ke7 {[%clk 0:00:06.7]} 75. Rf5 {[%clk 0:00:07]} 75...
Qd3 {[%clk 0:00:05.9]} 76. Rg5 {[%clk 0:00:05.8]} 76... Qe3+ {[%clk 0:00:05]}
77. Kf5 {[%clk 0:00:06.5]} 77... Kf7 {[%clk 0:00:05.2]} 78. Rg4 {[%clk
0:00:06.4]} 78... Qe6+ {[%clk 0:00:04.7]} 79. Kf4 {[%clk 0:00:06.9]} 79... Kf6
{[%clk 0:00:05.3]} 80. Rh4 {[%clk 0:00:05]} 80... Qc4+ {[%clk 0:00:05.1]} 81.
Kg3 {[%clk 0:00:05.6]} 81... Qe2 {[%clk 0:00:05.4]} 82. Kf4 {[%clk 0:00:05.9]}
82... Qf2+ {[%clk 0:00:04.7]} 83. Kg4 {[%clk 0:00:06.2]} 83... Ke5 {[%clk
0:00:04.3]} 84. Rh5+ {[%clk 0:00:06]} 84... Ke4 {[%clk 0:00:04.9]} 85. Rg5
{[%clk 0:00:06.3]} 85... Qh2 {[%clk 0:00:04.4]} 86. Rg6 {[%clk 0:00:03.1]} 86...
Qg2+ {[%clk 0:00:03.8]} 87. Kh5 {[%clk 0:00:03.5]} 87... Qh3+ {[%clk 0:00:04.2]}
88. Kg5 {[%clk 0:00:04.1]} 88... Ke5 {[%clk 0:00:04.8]} 89. Rg7 {[%clk
0:00:03.3]} 89... Ke6 {[%clk 0:00:05.1]} 90. Rg6+ {[%clk 0:00:03.4]} 90... Ke5
{[%clk 0:00:05.7]} 91. Rg7 {[%clk 0:00:04.1]} 91... Qh8 {[%clk 0:00:06.3]} 92.
Rg6 {[%clk 0:00:03.9]} 92... Qf8 {[%clk 0:00:06]} 93. Kg4 {[%clk 0:00:03]} 93...
Qf5+ {[%clk 0:00:05.8]} 0-1

[Event "Late-Titled-Tuesday-Blitz-March-05-2024"]
[Site "Chess.com"]
[Date "2024.03.05"]
[Round "7"]
[White "mishanick"]
[Black "Lukianoo"]
[Result "1-0"]
[WhiteElo "3079"]
[BlackElo "2870"]
[TimeControl "180+1"]
[EndTime "15:17:32 PST"]
[Termination "mishanick won by resignation"]

1. d4 {[%clk 0:02:55.9]} 1... Nf6 {[%clk 0:02:59.9]} 2. c4 {[%clk 0:02:56.7]}
2... e6 {[%clk 0:03:00.4]} 3. Nf3 {[%clk 0:02:56.9]} 3... Bb4+ {[%clk
0:03:00.3]} 4. Bd2 {[%clk 0:02:56.5]} 4... Qe7 {[%clk 0:02:59]} 5. g3 {[%clk
0:02:56]} 5... Nc6 {[%clk 0:02:59.2]} 6. b3 {[%clk 0:02:56.4]} 6... Bxd2+ {[%clk
0:02:53.9]} 7. Qxd2 {[%clk 0:02:57.3]} 7... d6 {[%clk 0:02:48.6]} 8. Nc3 {[%clk
0:02:56.7]} 8... O-O {[%clk 0:02:47.9]} 9. Bg2 {[%clk 0:02:56.3]} 9... e5 {[%clk
0:02:43.6]} 10. O-O {[%clk 0:02:52.3]} 10... e4 {[%clk 0:02:38.1]} 11. Ng5
{[%clk 0:02:51.7]} 11... Bf5 {[%clk 0:02:34.3]} 12. d5 {[%clk 0:02:50.9]} 12...
Ne5 {[%clk 0:02:12.5]} 13. Qf4 {[%clk 0:02:44.7]} 13... Bg6 {[%clk 0:01:59.1]}
14. Ngxe4 {[%clk 0:02:40.1]} 14... Nxe4 {[%clk 0:01:58.7]} 15. Bxe4 {[%clk
0:02:39.7]} 15... Rae8 {[%clk 0:01:56.2]} 16. Bg2 {[%clk 0:02:36.6]} 16... Nd7
{[%clk 0:01:54.6]} 17. Rad1 {[%clk 0:02:27.4]} 17... Qd8 {[%clk 0:01:54.4]} 18.
Qd4 {[%clk 0:02:26.1]} 18... a5 {[%clk 0:01:52]} 19. e4 {[%clk 0:02:22.6]} 19...
f5 {[%clk 0:01:47]} 20. f4 {[%clk 0:02:05.9]} 20... fxe4 {[%clk 0:01:46.3]} 21.
Bxe4 {[%clk 0:02:06.3]} 21... Bxe4 {[%clk 0:01:38.6]} 22. Nxe4 {[%clk
0:02:07.2]} 22... h6 {[%clk 0:01:38.1]} 23. Rde1 {[%clk 0:02:04.8]} 23... b6
{[%clk 0:01:35.6]} 24. Re2 {[%clk 0:02:01.1]} 24... Re7 {[%clk 0:01:32.7]} 25.
Rfe1 {[%clk 0:02:01.5]} 25... Rfe8 {[%clk 0:01:32.5]} 26. Kf2 {[%clk 0:02:00.3]}
26... Kh8 {[%clk 0:01:22.5]} 27. Re3 {[%clk 0:01:57.2]} 27... Rf8 {[%clk
0:01:17.9]} 28. h4 {[%clk 0:01:53.8]} 28... Ne5 {[%clk 0:01:16.5]} 29. Kg2
{[%clk 0:01:47.2]} 29... Ng4 {[%clk 0:01:16.1]} 30. R3e2 {[%clk 0:01:47.7]}
30... Qe8 {[%clk 0:01:07.2]} 31. Qd3 {[%clk 0:01:39.5]} 31... Qh5 {[%clk
0:00:54.9]} 32. Nf2 {[%clk 0:01:37.6]} 32... Nxf2 {[%clk 0:00:51.7]} 33. Kxf2
{[%clk 0:01:35.5]} 33... Ref7 {[%clk 0:00:42.5]} 34. Kg2 {[%clk 0:01:27.1]}
34... Qg4 {[%clk 0:00:41.6]} 35. Re4 {[%clk 0:01:15.1]} 35... Qg6 {[%clk
0:00:34.7]} 36. Qf3 {[%clk 0:01:13.1]} 36... Qf6 {[%clk 0:00:33.1]} 37. R1e2
{[%clk 0:01:11.9]} 37... a4 {[%clk 0:00:32.3]} 38. Re8 {[%clk 0:01:08]} 38...
Qd4 {[%clk 0:00:26.3]} 39. Qe4 {[%clk 0:01:03.6]} 39... Qc3 {[%clk 0:00:22.3]}
40. Qg6 {[%clk 0:00:52.9]} 40... Rf6 {[%clk 0:00:14.8]} 41. Qc2 {[%clk
0:00:28.6]} 41... Qd4 {[%clk 0:00:11.9]} 42. bxa4 {[%clk 0:00:25.1]} 42... Kg8
{[%clk 0:00:11.3]} 43. h5 {[%clk 0:00:24.9]} 43... Rxe8 {[%clk 0:00:06.2]} 44.
Rxe8+ {[%clk 0:00:24.4]} 44... Kf7 {[%clk 0:00:07.1]} 45. Re4 {[%clk 0:00:21.5]}
45... Qc5 {[%clk 0:00:06.2]} 46. Re2 {[%clk 0:00:20.4]} 46... Kg8 {[%clk
0:00:06]} 47. Re8+ {[%clk 0:00:15.9]} 47... Rf8 {[%clk 0:00:05.9]} 48. Re7
{[%clk 0:00:12.3]} 48... Qd4 {[%clk 0:00:04.6]} 49. Qe2 {[%clk 0:00:11.6]} 49...
Kh8 {[%clk 0:00:03.3]} 50. Kf3 {[%clk 0:00:10.2]} 50... Qc3+ {[%clk 0:00:03]}
51. Kg4 {[%clk 0:00:10.8]} 51... Qf6 {[%clk 0:00:03.9]} 52. Qe6 {[%clk
0:00:06.6]} 52... Qa1 {[%clk 0:00:03.3]} 53. Qe2 {[%clk 0:00:06.3]} 53... Qf6
{[%clk 0:00:03.1]} 54. Re8 {[%clk 0:00:03.7]} 54... Qf5+ {[%clk 0:00:03.4]} 55.
Kh4 {[%clk 0:00:04.3]} 55... Qf6+ {[%clk 0:00:03.6]} 56. Kh3 {[%clk 0:00:04.6]}
56... Qf5+ {[%clk 0:00:04.2]} 57. Kg2 {[%clk 0:00:04.4]} 57... Qf7 {[%clk
0:00:04.2]} 58. Rxf8+ {[%clk 0:00:03.8]} 58... Qxf8 {[%clk 0:00:05.1]} 59. Qe6
{[%clk 0:00:03.3]} 59... Qa8 {[%clk 0:00:05.1]} 60. f5 {[%clk 0:00:02.6]} 60...
Qxa4 {[%clk 0:00:04.7]} 61. f6 {[%clk 0:00:03.3]} 61... Qc2+ {[%clk 0:00:04.1]}
62. Kh3 {[%clk 0:00:03.7]} 62... gxf6 {[%clk 0:00:04.6]} 63. Qxf6+ {[%clk
0:00:04.1]} 63... Kh7 {[%clk 0:00:05.2]} 64. Qe7+ {[%clk 0:00:04.8]} 64... Kh8
{[%clk 0:00:05.6]} 65. Qd8+ {[%clk 0:00:05.5]} 65... Kh7 {[%clk 0:00:05.8]} 66.
Qxc7+ {[%clk 0:00:06.2]} 66... Kh8 {[%clk 0:00:06.4]} 67. Qd8+ {[%clk
0:00:06.5]} 67... Kh7 {[%clk 0:00:06.9]} 68. Qd7+ {[%clk 0:00:06.7]} 68... Kh8
{[%clk 0:00:07.4]} 69. Qe6 {[%clk 0:00:06.6]} 69... Kh7 {[%clk 0:00:06.5]} 70.
Qg6+ {[%clk 0:00:06]} 70... Qxg6 {[%clk 0:00:05.9]} 71. hxg6+ {[%clk 0:00:06.9]}
71... Kxg6 {[%clk 0:00:06.7]} 72. Kg4 {[%clk 0:00:07.6]} 72... h5+ {[%clk
0:00:07.1]} 73. Kf4 {[%clk 0:00:08]} 73... Kf6 {[%clk 0:00:07.7]} 74. a4 {[%clk
0:00:07.5]} 74... Kg6 {[%clk 0:00:08.1]} 75. Ke4 {[%clk 0:00:07.2]} 75... Kf6
{[%clk 0:00:08.2]} 76. Kd4 {[%clk 0:00:06.4]} 76... Kf5 {[%clk 0:00:08.6]} 77.
Kc3 {[%clk 0:00:07]} 77... Ke4 {[%clk 0:00:08.6]} 78. Kb4 {[%clk 0:00:07]} 78...
Kf3 {[%clk 0:00:09.2]} 79. Kb5 {[%clk 0:00:06.8]} 79... Kxg3 {[%clk 0:00:09.7]}
80. Kxb6 {[%clk 0:00:07.6]} 80... h4 {[%clk 0:00:10.3]} 81. c5 {[%clk
0:00:07.8]} 81... h3 {[%clk 0:00:11.2]} 82. cxd6 {[%clk 0:00:07.3]} 82... h2
{[%clk 0:00:12.1]} 83. d7 {[%clk 0:00:08]} 83... h1=Q {[%clk 0:00:12.9]} 84.
d8=Q {[%clk 0:00:08.9]} 84... Qb1+ {[%clk 0:00:12.8]} 85. Ka7 {[%clk 0:00:08.5]}
85... Qa2 {[%clk 0:00:11.1]} 86. Qa5 {[%clk 0:00:07.8]} 86... Kf4 {[%clk
0:00:10.8]} 87. Qb4+ {[%clk 0:00:07.6]} 87... Ke5 {[%clk 0:00:10.8]} 88. d6
{[%clk 0:00:08.1]} 88... Ke6 {[%clk 0:00:10.7]} 89. a5 {[%clk 0:00:07.8]} 89...
Kd7 {[%clk 0:00:10.1]} 90. a6 {[%clk 0:00:08.3]} 90... Qa1 {[%clk 0:00:09.8]}
91. Kb7 {[%clk 0:00:06.1]} 91... Qh1+ {[%clk 0:00:09.4]} 92. Kb8 {[%clk
0:00:06.4]} 92... Qh8+ {[%clk 0:00:09.2]} 93. Ka7 {[%clk 0:00:06.6]} 93... Qh2
{[%clk 0:00:08.2]} 94. Qb7+ {[%clk 0:00:05]} 94... Ke6 {[%clk 0:00:08.7]} 95.
Qc6 {[%clk 0:00:03.9]} 95... Qf2+ {[%clk 0:00:07.4]} 96. Kb8 {[%clk 0:00:04]}
96... Qb2+ {[%clk 0:00:06.3]} 97. Kc8 {[%clk 0:00:04.2]} 97... Qh8+ {[%clk
0:00:05.9]} 98. Kc7 {[%clk 0:00:04.7]} 98... Qg7+ {[%clk 0:00:06.2]} 99. d7+
{[%clk 0:00:04.8]} 99... Ke7 {[%clk 0:00:06.5]} 100. d8=Q+ {[%clk 0:00:04.1]}
1-0

[Event "Late-Titled-Tuesday-Blitz-March-05-2024"]
[Site "Chess.com"]
[Date "2024.03.05"]
[Round "8"]
[White "NtcPou"]
[Black "Nick12772"]
[Result "0-1"]
[WhiteElo "2029"]
[BlackElo "2400"]
[TimeControl "180+1"]
[EndTime "15:19:28 PST"]
[Termination "Nick12772 won by resignation"]

1. e4 {[%clk 0:03:00.9]} 1... e6 {[%clk 0:03:00.2]} 2. d4 {[%clk 0:03:00.6]}
2... d5 {[%clk 0:03:01.1]} 3. Nd2 {[%clk 0:03:00.6]} 3... Nf6 {[%clk 0:03:01.2]}
4. e5 {[%clk 0:03:00.7]} 4... Nfd7 {[%clk 0:03:01.9]} 5. Bd3 {[%clk 0:03:01.1]}
5... c5 {[%clk 0:03:02.8]} 6. c3 {[%clk 0:03:01.6]} 6... Nc6 {[%clk 0:03:03.7]}
7. Ne2 {[%clk 0:03:01.4]} 7... cxd4 {[%clk 0:03:04.3]} 8. cxd4 {[%clk
0:03:01.7]} 8... f6 {[%clk 0:03:05.1]} 9. Nf4 {[%clk 0:03:00.7]} 9... Nxd4
{[%clk 0:03:04.9]} 10. Qh5+ {[%clk 0:02:58.6]} 10... Ke7 {[%clk 0:03:05.5]} 11.
Ng6+ {[%clk 0:02:58.2]} 11... hxg6 {[%clk 0:03:05.4]} 12. exf6+ {[%clk
0:02:58.2]} 12... Nxf6 {[%clk 0:03:05.1]} 13. Qxh8 {[%clk 0:02:58.4]} 13... Kf7
{[%clk 0:03:05.7]} 14. Nb3 {[%clk 0:02:43]} 14... Bb4+ {[%clk 0:03:05.3]} 15.
Bd2 {[%clk 0:02:38.3]} 15... Bxd2+ {[%clk 0:03:05.5]} 16. Nxd2 {[%clk 0:02:32]}
16... Qxh8 {[%clk 0:03:06.4]} 0-1

[Event "Late-Titled-Tuesday-Blitz-March-05-2024"]
[Site "Chess.com"]
[Date "2024.03.05"]
[Round "8"]
[White "Alexei_Gubajdullin"]
[Black "ccccvhhhj"]
[Result "1-0"]
[WhiteElo "2639"]
[BlackElo "2469"]
[TimeControl "180+1"]
[EndTime "15:19:55 PST"]
[Termination "Alexei_Gubajdullin won by resignation"]

1. Nf3 {[%clk 0:03:00.9]} 1... d5 {[%clk 0:02:59.7]} 2. g3 {[%clk 0:03:01.2]}
2... c6 {[%clk 0:02:59.8]} 3. Bg2 {[%clk 0:03:01.8]} 3... Bf5 {[%clk 0:02:58.3]}
4. O-O {[%clk 0:03:02.4]} 4... Qc8 {[%clk 0:02:55.3]} 5. d3 {[%clk 0:03:02]}
5... Bh3 {[%clk 0:02:54.9]} 6. c4 {[%clk 0:03:01.6]} 6... Bxg2 {[%clk
0:02:54.8]} 7. Kxg2 {[%clk 0:03:01.5]} 7... e6 {[%clk 0:02:55.4]} 8. Nc3 {[%clk
0:02:57.9]} 8... Nf6 {[%clk 0:02:55.7]} 9. cxd5 {[%clk 0:02:56.5]} 9... cxd5
{[%clk 0:02:54.4]} 10. Bg5 {[%clk 0:02:56.1]} 10... Be7 {[%clk 0:02:54.3]} 11.
Rc1 {[%clk 0:02:56.6]} 11... Qd8 {[%clk 0:02:48.5]} 12. Qa4+ {[%clk 0:02:55]}
12... Nbd7 {[%clk 0:02:42.8]} 13. Bxf6 {[%clk 0:02:44.9]} 13... Bxf6 {[%clk
0:02:41.9]} 14. e4 {[%clk 0:02:40.9]} 14... dxe4 {[%clk 0:02:38.8]} 15. dxe4
{[%clk 0:02:40.4]} 15... O-O {[%clk 0:02:39.4]} 16. Rfd1 {[%clk 0:02:38.6]}
16... Bxc3 {[%clk 0:02:34.4]} 17. Rxd7 {[%clk 0:02:35.4]} 17... b5 {[%clk
0:02:31.3]} 18. Rxd8 {[%clk 0:02:32.3]} 18... bxa4 {[%clk 0:02:30.7]} 19. Rxf8+
{[%clk 0:02:31.6]} 19... Rxf8 {[%clk 0:02:29.9]} 20. Rxc3 {[%clk 0:02:31.8]} 1-0